fUST/lending_fUST_20240723
["ID","MTS","AMOUNT","RATE_DAILY","PERIOD"]
[332977948,1721717442032,-500.0,0.00013698,2]
[332977949,1721717442042,-151.0,0.00013698,2]
[332977950,1721717442052,-151.72375,0.00013698,2]
[332977951,1721717442062,-500.0,0.00013698,2]
[332977952,1721717442072,-500.0,0.00013698,2]
[332977953,1721717442082,-515.34711354,0.00013698,2]
[332977954,1721717442091,-501.19667638,0.00013698,2]
[332977955,1721717442100,-510.63368436,0.00013698,2]
[332977956,1721717442110,-500.0,0.00013698,2]
[332977957,1721717442119,-500.0,0.00013698,2]
[332977958,1721717442128,-508.04451769,0.00013698,2]
[332977959,1721717442138,-500.0,0.00013698,2]
[332977960,1721717442149,-500.0,0.00013698,2]
[332977961,1721717442158,-500.0,0.00013698,2]
[332977962,1721717442168,-512.96019846,0.00013698,2]
[332977963,1721717442177,-500.0,0.00013698,2]
[332977964,1721717442187,-519.44632372,0.00013698,2]
[332977965,1721717442196,-500.0,0.00013698,2]
[332977966,1721717442205,-500.0,0.00013698,2]
[332977967,1721717442214,-500.0,0.00013698,2]
[332977968,1721717442224,-500.0,0.00013698,2]
[332977969,1721717442235,-505.28009912,0.00013698,2]
[332977970,1721717442246,-505.17546027,0.00013698,2]
[332977971,1721717442257,-504.00793382,0.00013698,2]
[332977972,1721717442266,-500.0,0.00013698,2]
[332977973,1721717442275,-500.0,0.00013698,2]
[332977974,1721717442285,-500.0,0.00013698,2]
[332977975,1721717442295,-500.0,0.00013698,2]
[332977976,1721717442305,-500.0,0.00013698,2]
[332977977,1721717442314,-515.73227776,0.00013698,2]
[332977978,1721717442325,-500.0,0.00013698,2]
[332977979,1721717442335,-206.43980892,0.00013698,2]
[332977980,1721717442345,-151.0,0.00013698,2]
[332977981,1721717442355,-515.00000001,0.00013698,2]
[332977982,1721717442365,-151.450841,0.00013698,2]
[332977983,1721717442374,-621.17,0.00013698,2]
[332977984,1721717442383,-500.0,0.00013698,2]
[332977985,1721717442393,-500.0,0.00013698,2]
[332977986,1721717442405,-500.0,0.00013698,2]
[332977987,1721717442418,-500.0,0.00013698,2]
[332977988,1721717442430,-500.0,0.00013698,2]
[332977989,1721717442441,-151.0,0.00013698,2]
[332977990,1721717442452,-151.0,0.00013698,2]
[332977991,1721717442461,-151.416266,0.00013698,2]
[332977992,1721717442470,-500.0,0.00013698,2]
[332977993,1721717442480,-500.0,0.00013698,2]
[332977994,1721717442490,-500.0,0.00013698,2]
[332977995,1721717442500,-500.0,0.00013698,2]
[332977996,1721717442512,-502.06907572,0.00013698,2]
[332977997,1721717442524,-500.0,0.00013698,2]
[332977998,1721717442535,-500.0,0.00013698,2]
[332977999,1721717442547,-151.0,0.00013698,2]
[332978000,1721717442560,-151.0,0.00013698,2]
[332978001,1721717442569,-151.0,0.00013698,2]
[332978002,1721717442579,-151.0,0.00013698,2]
[332978003,1721717442590,-151.0,0.00013698,2]
[332978004,1721717442599,-211.690158,0.00013698,2]
[332978005,1721717442608,-500.0,0.00013698,2]
[332978006,1721717442618,-362.07545012,0.00013698,2]
[332978007,1721717442627,-151.0,0.00013698,2]
[332978008,1721717442636,-151.0,0.00013698,2]
[332978009,1721717442646,-151.0,0.00013698,2]
[332978010,1721717442656,-500.0,0.00013698,2]
[332978011,1721717442666,-151.0,0.00013698,2]
[332978012,1721717442676,-295.46436202,0.00013698,2]
[332978013,1721717442685,-510.98108388,0.00013698,2]
[332978014,1721717442695,-500.0,0.00013698,2]
[332978015,1721717442704,-500.0,0.00013698,2]
[332978016,1721717442713,-500.0,0.00013698,2]
[332978017,1721717442722,-500.0,0.00013698,2]
[332978018,1721717442732,-500.0,0.00013698,2]
[332978019,1721717442741,-500.0,0.00013698,2]
[332978020,1721717442751,-500.0,0.00013698,2]
[332978021,1721717442760,-512.64,0.00013698,2]
[332978022,1721717442769,-500.0,0.00013698,2]
[332978023,1721717442778,-500.0,0.00013698,2]
[332978024,1721717442788,-500.0,0.00013698,2]
[332978025,1721717442797,-500.0,0.00013698,2]
[332978026,1721717442808,-500.0,0.00013698,2]
[332978027,1721717442820,-500.0,0.00013698,2]
[332978028,1721717442831,-500.0,0.00013698,2]
[332978029,1721717442842,-500.0,0.00013698,2]
[332978030,1721717442854,-500.0,0.00013698,2]
[332978031,1721717442863,-616.82757455,0.00013698,2]
[332978032,1721717442873,-500.0,0.00013698,2]
[332978033,1721717442882,-584.73601289,0.00013698,2]
[332978035,1721717442892,-500.0,0.00013698,2]
[332978037,1721717442901,-500.0,0.00013698,2]
[332978038,1721717442911,-500.0,0.00013698,2]
[332978039,1721717442921,-500.0,0.00013698,2]
[332978040,1721717442932,-503.42817,0.00013698,2]
[332978041,1721717442942,-511.90924462,0.00013698,2]
[332978042,1721717442954,-500.0,0.00013698,2]
[332978043,1721717442964,-500.0,0.00013698,2]
[332978044,1721717442974,-500.0,0.00013698,2]
[332978045,1721717442983,-500.0,0.00013698,2]
[332978046,1721717442992,-500.0,0.00013698,2]
[332978047,1721717443002,-500.0,0.00013698,2]
[332978048,1721717443011,-500.0,0.00013698,2]
[332978049,1721717443021,-97.5061744,0.00013698,2]
[332978050,1721717443053,-402.4938256,0.00013698,2]
[332978051,1721717443066,-564.09,0.00013698,2]
[332978052,1721717443076,-605.69,0.00013698,2]
[332978053,1721717443085,-500.0,0.00013698,2]
[332978054,1721717443094,-500.0,0.00013698,2]
[332978055,1721717443104,-530.03767604,0.00013698,2]
[332978056,1721717443113,-500.0,0.00013698,2]
[332978057,1721717443125,-380.43013622,0.00013698,2]
[332978058,1721717443169,-119.56986378,0.00013698,2]
[332978059,1721717443179,-500.0,0.00013698,2]
[332978060,1721717443188,-308.81013622,0.00013698,2]
[332978061,1721717443201,-191.18986378,0.00013698,2]
[332978062,1721717443210,-477.98013622,0.00013698,2]
[332978063,1721717443222,-22.01986378,0.00013698,2]
[332978064,1721717443231,-480.62848142,0.00013698,2]
[332978082,1721717446352,-19.37151858,0.00013698,2]
[332978083,1721717446362,-500.0,0.00013698,2]
[332978084,1721717446372,-500.0,0.00013698,2]
[332978085,1721717446381,-500.0,0.00013698,2]
[332978086,1721717446390,-500.0,0.00013698,2]
[332978087,1721717446400,-500.0,0.00013698,2]
[332978088,1721717446412,-500.0,0.00013698,2]
[332978089,1721717446421,-500.0,0.00013698,2]
[332978090,1721717446431,-500.0,0.00013698,2]
[332978091,1721717446441,-500.0,0.00013698,2]
[332978092,1721717446451,-578.55,0.00013698,2]
[332978094,1721717446461,-500.0,0.00013698,2]
[332978095,1721717446470,-188.20192929,0.00013698,2]
[332978096,1721717446483,-311.79807071,0.00013698,2]
[332978097,1721717446494,-21.60060639,0.00013698,2]
[332978098,1721717446505,-478.39939361,0.00013698,2]
[332978099,1721717446514,-500.0,0.00013698,2]
[332978100,1721717446524,-500.0,0.00013698,2]
[332978101,1721717446533,-500.0,0.00013698,2]
[332978102,1721717446543,-500.0,0.00013698,2]
[332978103,1721717446552,-535.86720726,0.00013698,2]
[332978104,1721717446562,-500.0,0.00013698,2]
[332978105,1721717446571,-500.0,0.00013698,2]
[332978106,1721717446581,-500.0,0.00013698,2]
[332978107,1721717446591,-500.0,0.00013698,2]
[332978108,1721717446600,-505.39149835,0.00013698,2]
[332978109,1721717446610,-508.56279323,0.00013698,2]
[332978110,1721717446619,-556.54,0.00013698,2]
[332978111,1721717446629,-500.0,0.00013698,2]
[332978112,1721717446638,-500.0,0.00013698,2]
[332978113,1721717446647,-79.76046691,0.00013698,2]
[332978114,1721717446659,-420.23953309,0.00013698,2]
[332978115,1721717446668,-215.76046691,0.00013698,2]
[332978128,1721718359347,-154.76012181,9.899e-05,2]
[332978129,1721718359370,-154.76012181,9.999e-05,2]
[332978131,1721718367305,231.20789829,9.9e-05,2]
[332978132,1721718398220,196.69288893,9.999e-05,2]
[332978134,1721718434858,218.09499306,9.999e-05,2]
[332978135,1721718435149,-273.37336231,0.00012132,2]
[332978136,1721718437678,232.85,9.999e-05,2]
[332978137,1721718449274,-401.80613266,0.00012132,2]
[332978138,1721718450204,-232.85,0.00012132,2]
[332978139,1721718458882,1085.5793858,9.999e-05,2]
[332978141,1721718470142,-1737.24897783,0.00012132,2]
[332978142,1721718470166,-178.49381,0.00012401,2]
[332978143,1721718470189,-16791.7210368,0.0001241,2]
[332978144,1721718470212,-178.49381,0.00013047,2]
[332978145,1721718470234,-200.0,0.00013425,2]
[332978146,1721718470256,-367.35615468,0.00013425,2]
[332978147,1721718470279,-1041.44080971,0.00013588,2]
[332978148,1721718470304,-306.0,0.000136,2]
[332978149,1721718470328,-206.6667486,0.000136,2]
[332978150,1721718470352,-306.0,0.000136,2]
[332978151,1721718470376,-293.8749366,0.000136,2]
[332978152,1721718470401,-5304.19710114,0.00013655,2]
[332978153,1721718470424,-28851.2826193,0.00013688,2]
[332978154,1721718470450,-28851.2826193,0.00013689,2]
[332978155,1721718470474,-14425.6413096,0.00013689,2]
[332978156,1721718470496,-155.0,0.0001369,2]
[332978157,1721718470521,-1409.0,0.00013694,2]
[332978158,1721718470546,-284.23953309,0.00013698,2]
[332978159,1721718470569,-500.0,0.00013698,2]
[332978160,1721718470592,-500.0,0.00013698,2]
[332978161,1721718470615,-500.0,0.00013698,2]
[332978162,1721718470637,-502.40678066,0.00013698,2]
[332978163,1721718470659,-500.0,0.00013698,2]
[332978164,1721718470682,-500.0,0.00013698,2]
[332978165,1721718470707,-521.58,0.00013698,2]
[332978166,1721718470735,-500.13064725,0.00013698,2]
[332978167,1721718470758,-172.32219249,0.00013698,2]
[332978168,1721718470779,-500.0,0.00013698,2]
[332978169,1721718470802,-500.0,0.00013698,2]
[332978170,1721718470826,-500.0,0.00013698,2]
[332978171,1721718470851,-500.0,0.00013698,2]
[332978172,1721718470873,-500.0,0.00013698,2]
[332978173,1721718470895,-516.35547637,0.00013698,2]
[332978174,1721718470920,-500.0,0.00013698,2]
[332978175,1721718470947,-500.0,0.00013698,2]
[332978176,1721718470969,-501.2016491,0.00013698,2]
[332978177,1721718470996,-505.31752191,0.00013698,2]
[332978178,1721718471022,-500.0,0.00013698,2]
[332978179,1721718471046,-507.14903014,0.00013698,2]
[332978180,1721718471070,-500.0,0.00013698,2]
[332978181,1721718471092,-500.0,0.00013698,2]
[332978182,1721718471119,-500.0,0.00013698,2]
[332978183,1721718471144,-500.0,0.00013698,2]
[332978184,1721718471168,-500.0,0.00013698,2]
[332978185,1721718471190,-500.0,0.00013698,2]
[332978186,1721718471214,-258.82460563,0.00013698,2]
[332978187,1721718471236,-547.48124008,0.00013698,2]
[332978188,1721718471261,-505.38131075,0.00013698,2]
[332978189,1721718471283,-500.0,0.00013698,2]
[332978190,1721718471305,-169.1445557,0.00013698,2]
[332978191,1721718471327,-500.0,0.00013698,2]
[332978192,1721718471349,-510.85618464,0.00013698,2]
[332978193,1721718471371,-500.0,0.00013698,2]
[332978194,1721718471394,-549.16394034,0.00013698,2]
[332978195,1721718471415,-575.89695953,0.00013698,2]
[332978196,1721718471438,-550.58622543,0.00013698,2]
[332978197,1721718471460,-500.0,0.00013698,2]
[332978198,1721718471482,-500.0,0.00013698,2]
[332978199,1721718471504,-500.0,0.00013698,2]
[332978200,1721718471525,-500.0,0.00013698,2]
[332978201,1721718471547,-500.0,0.00013698,2]
[332978202,1721718471572,-1859.28,0.00013698,2]
[332978203,1721718471599,-151.0,0.00013698,2]
[332978204,1721718471625,-151.0,0.00013698,2]
[332978205,1721718471651,-151.0,0.00013698,2]
[332978206,1721718471676,-168.066387,0.00013698,2]
[332978207,1721718471702,-2306.6,0.00013698,2]
[332978208,1721718471729,-3130.08,0.00013698,2]
[332978209,1721718471754,-500.0,0.00013698,2]
[332978210,1721718471778,-500.0,0.00013698,2]
[332978211,1721718471803,-1899.38,0.00013698,2]
[332978212,1721718471827,-617.89,0.00013698,2]
[332978213,1721718471851,-500.0,0.00013698,2]
[332978214,1721718471876,-3370.2,0.00013698,2]
[332978215,1721718471901,-1558.39,0.00013698,2]
[332978216,1721718471928,-500.0,0.00013698,2]
[332978217,1721718471955,-2729.21,0.00013698,2]
[332978218,1721718471981,-500.0,0.00013698,2]
[332978219,1721718472008,-2654.36,0.00013698,2]
[332978220,1721718472032,-337.853631,0.00013698,2]
[332978221,1721718472058,-337.853631,0.00013698,2]
[332978222,1721718472081,-337.853631,0.00013698,2]
[332978223,1721718472103,-337.853631,0.00013698,2]
[332978224,1721718472127,-337.853631,0.00013698,2]
[332978225,1721718472152,-337.853631,0.00013698,2]
[332978226,1721718472371,-2008.77946595,0.00013698,2]
[332978227,1721718472396,-151.0,0.00013698,2]
[332978228,1721718472421,-151.0,0.00013698,2]
[332978229,1721718472444,-151.0,0.00013698,2]
[332978230,1721718472466,-151.0,0.00013698,2]
[332978231,1721718472488,-151.0,0.00013698,2]
[332978232,1721718472512,-186.823368,0.00013698,2]
[332978233,1721718472535,-501.24262,0.00013698,2]
[332978234,1721718472559,-501.24262,0.00013698,2]
[332978235,1721718472582,-501.24262,0.00013698,2]
[332978236,1721718472614,-501.24262,0.00013698,2]
[332978237,1721718472645,-236.301712,0.00013698,2]
[332978238,1721718472669,-162.131697,0.00013698,2]
[332978239,1721718472693,-342.70770687,0.00013698,2]
[332978240,1721718472718,-602.26633,0.00013698,2]
[332978241,1721718472746,-602.26633,0.00013698,2]
[332978242,1721718472769,-602.26633,0.00013698,2]
[332978243,1721718472793,-602.26633,0.00013698,2]
[332978244,1721718472820,-500.93461575,0.00013698,2]
[332978245,1721718472844,-151.0,0.00013698,2]
[332978246,1721718472873,-151.418683,0.00013698,2]
[332978247,1721718472899,-151.0,0.00013698,2]
[332978248,1721718472926,-264.251896,0.00013698,2]
[332978249,1721718472951,-152.266493,0.00013698,2]
[332978250,1721718472975,-152.266493,0.00013698,2]
[332978251,1721718473000,-152.266493,0.00013698,2]
[332978252,1721718473025,-152.266493,0.00013698,2]
[332978253,1721718473050,-500.0,0.00013698,2]
[332978254,1721718473074,-192.359929,0.00013698,2]
[332978255,1721718473098,-192.359929,0.00013698,2]
[332978256,1721718473122,-192.359929,0.00013698,2]
[332978257,1721718473148,-192.359929,0.00013698,2]
[332978258,1721718473172,-151.0,0.00013698,2]
[332978259,1721718473197,-151.0,0.00013698,2]
[332978260,1721718473220,-150.0,0.00013698,2]
[332978261,1721718473244,-168.040691,0.00013698,2]
[332978262,1721718473268,-151.0,0.00013698,2]
[332978263,1721718473293,-151.0,0.00013698,2]
[332978264,1721718473316,-151.0,0.00013698,2]
[332978265,1721718473341,-151.0,0.00013698,2]
[332978266,1721718473368,-731.438032,0.00013698,2]
[332978267,1721718473394,-731.438032,0.00013698,2]
[332978268,1721718473422,-731.438032,0.00013698,2]
[332978269,1721718473446,-731.438032,0.00013698,2]
[332978270,1721718473472,-891.850071,0.00013698,2]
[332978271,1721718473496,-891.850071,0.00013698,2]
[332978272,1721718473520,-891.850071,0.00013698,2]
[332978273,1721718473549,-891.850071,0.00013698,2]
[332978274,1721718473574,-500.0,0.00013698,2]
[332978275,1721718473599,-151.681072,0.00013698,2]
[332978276,1721718473626,-1752.450019,0.00013698,2]
[332978277,1721718473649,-1752.450019,0.00013698,2]
[332978278,1721718473676,-1752.450019,0.00013698,2]
[332978279,1721718473702,-1752.450019,0.00013698,2]
[332978280,1721718473728,-500.0,0.00013698,2]
[332978281,1721718473752,-200.622234,0.00013698,2]
[332978282,1721718473778,-151.0,0.00013698,2]
[332978283,1721718473804,-200.622234,0.00013698,2]
[332978284,1721718473831,-200.622234,0.00013698,2]
[332978285,1721718473858,-152.27319,0.00013698,2]
[332978286,1721718473883,-200.622234,0.00013698,2]
[332978287,1721718473908,-151.0,0.00013698,2]
[332978288,1721718473932,-151.0,0.00013698,2]
[332978289,1721718473958,-151.0,0.00013698,2]
[332978290,1721718473982,-151.0,0.00013698,2]
[332978291,1721718474005,-500.0,0.00013698,2]
[332978292,1721718474029,-263.26181232,0.00013698,2]
[332978293,1721718474054,-256.34774672,0.00013698,2]
[332978294,1721718474095,-500.0,0.00013698,2]
[332978295,1721718474133,-576.56024683,0.00013698,2]
[332978296,1721718474166,-246.10057342,0.00013698,2]
[332978297,1721718474199,-500.0,0.00013698,2]
[332978298,1721718474233,-500.0,0.00013698,2]
[332978299,1721718474270,-500.0,0.00013698,2]
[332978300,1721718474303,-500.0,0.00013698,2]
[332978301,1721718474337,-500.0,0.00013698,2]
[332978302,1721718474373,-1129.11071797,0.00013698,2]
[332978303,1721718474401,-1129.11071797,0.00013698,2]
[332978304,1721718474431,-1129.11071797,0.00013698,2]
[332978305,1721718474464,-1129.11071797,0.00013698,2]
[332978306,1721718474497,-1129.11071797,0.00013698,2]
[332978307,1721718474532,-500.0,0.00013698,2]
[332978308,1721718474560,-1129.11071797,0.00013698,2]
[332978309,1721718474587,-500.0,0.00013698,2]
[332978310,1721718474619,-500.0,0.00013698,2]
[332978311,1721718474648,-205.73628593,0.00013698,2]
[332978312,1721718474678,-500.0,0.00013698,2]
[332978313,1721718474711,-500.0,0.00013698,2]
[332978314,1721718474742,-500.0,0.00013698,2]
[332978315,1721718474771,-1129.11071797,0.00013698,2]
[332978316,1721718474802,-500.0,0.00013698,2]
[332978317,1721718474835,-500.0,0.00013698,2]
[332978318,1721718474873,-506.64160895,0.00013698,2]
[332978319,1721718474903,-500.0,0.00013698,2]
[332978320,1721718474933,-500.0,0.00013698,2]
[332978321,1721718474962,-500.0,0.00013698,2]
[332978322,1721718474992,-500.0,0.00013698,2]
[332978323,1721718475021,-1129.11071797,0.00013698,2]
[332978324,1721718475050,-500.0,0.00013698,2]
[332978325,1721718475079,-500.0,0.00013698,2]
[332978326,1721718475108,-1129.11071797,0.00013698,2]
[332978327,1721718475138,-1129.11071797,0.00013698,2]
[332978328,1721718475167,-500.0,0.00013698,2]
[332978329,1721718475196,-1129.11071797,0.00013698,2]
[332978330,1721718475225,-500.0,0.00013698,2]
[332978331,1721718475254,-500.0,0.00013698,2]
[332978332,1721718475283,-500.0,0.00013698,2]
[332978333,1721718475311,-500.0,0.00013698,2]
[332978334,1721718475340,-500.0,0.00013698,2]
[332978335,1721718475369,-500.0,0.00013698,2]
[332978336,1721718475398,-517.20066252,0.00013698,2]
[332978337,1721718475428,-500.0,0.00013698,2]
[332978338,1721718475457,-500.0,0.00013698,2]
[332978339,1721718475485,-500.0,0.00013698,2]
[332978340,1721718475514,-500.0,0.00013698,2]
[332978341,1721718475544,-512.07499502,0.00013698,2]
[332978342,1721718475573,-529.59978471,0.00013698,2]
[332978343,1721718475601,-500.0,0.00013698,2]
[332978344,1721718475630,-500.0,0.00013698,2]
[332978345,1721718475659,-297.84903269,0.00013698,2]
[332978346,1721718475686,-500.0,0.00013698,2]
[332978347,1721718475712,-335.74188101,0.00013698,2]
[332978348,1721718475743,-500.0,0.00013698,2]
[332978349,1721718475772,-500.0,0.00013698,2]
[332978350,1721718475801,-500.0,0.00013698,2]
[332978351,1721718475829,-500.0,0.00013698,2]
[332978352,1721718475859,-500.0,0.00013698,2]
[332978353,1721718475889,-500.0,0.00013698,2]
[332978354,1721718475917,-500.0,0.00013698,2]
[332978355,1721718475945,-500.0,0.00013698,2]
[332978356,1721718475974,-350.0,0.00013698,2]
[332978357,1721718476001,-500.0,0.00013698,2]
[332978358,1721718476034,-151.355207,0.00013698,2]
[332978359,1721718476066,-1169.84103851,0.00013698,2]
[332978360,1721718476096,-1169.84103851,0.00013698,2]
[332978361,1721718476125,-1169.84103851,0.00013698,2]
[332978362,1721718476423,-500.0,0.00013698,2]
[332978363,1721718476452,-500.0,0.00013698,2]
[332978364,1721718476476,-1169.84103851,0.00013698,2]
[332978365,1721718476498,-500.0,0.00013698,2]
[332978366,1721718476520,-500.0,0.00013698,2]
[332978367,1721718476545,-500.0,0.00013698,2]
[332978368,1721718476568,-500.0,0.00013698,2]
[332978369,1721718476592,-500.0,0.00013698,2]
[332978370,1721718476618,-500.0,0.00013698,2]
[332978371,1721718476640,-1169.84103851,0.00013698,2]
[332978372,1721718476663,-500.0,0.00013698,2]
[332978373,1721718476686,-500.0,0.00013698,2]
[332978374,1721718476709,-500.0,0.00013698,2]
[332978375,1721718476734,-500.0,0.00013698,2]
[332978376,1721718476756,-500.0,0.00013698,2]
[332978377,1721718476779,-549.99999999,0.00013698,2]
[332978378,1721718476802,-500.0,0.00013698,2]
[332978379,1721718476825,-500.0,0.00013698,2]
[332978380,1721718476848,-500.0,0.00013698,2]
[332978381,1721718476874,-1169.84103851,0.00013698,2]
[332978382,1721718476897,-389.62684544,0.00013698,2]
[332978383,1721718476920,-500.0,0.00013698,2]
[332978384,1721718476942,-500.0,0.00013698,2]
[332978385,1721718476966,-500.0,0.00013698,2]
[332978386,1721718476989,-499.99999999,0.00013698,2]
[332978387,1721718477013,-151.0,0.00013698,2]
[332978388,1721718477037,-151.0,0.00013698,2]
[332978389,1721718477060,-1209.56122261,0.00013698,2]
[332978390,1721718477082,-1209.56122261,0.00013698,2]
[332978391,1721718477105,-1209.56122261,0.00013698,2]
[332978392,1721718477129,-1209.56122261,0.00013698,2]
[332978393,1721718477151,-1209.56122261,0.00013698,2]
[332978394,1721718477174,-1209.56122261,0.00013698,2]
[332978395,1721718477196,-181.23979649,0.00013698,2]
[332978396,1721718477219,-1209.56122261,0.00013698,2]
[332978397,1721718477243,-1491.79217456,0.00013698,2]
[332978398,1721718477267,-1491.79217456,0.00013698,2]
[332978399,1721718477289,-1491.79217456,0.00013698,2]
[332978400,1721718477311,-158.154533,0.00013699,2]
[332978401,1721718477335,-158.154533,0.00013699,2]
[332978402,1721718477360,-158.154533,0.00013699,2]
[332978403,1721718477398,-158.154533,0.00013699,2]
[332978404,1721718477421,-158.154533,0.00013699,2]
[332978405,1721718477443,-158.154533,0.00013699,2]
[332978406,1721718477467,-158.154533,0.00013699,2]
[332978407,1721718477491,-158.154533,0.00013699,2]
[332978408,1721718477516,-158.154533,0.00013699,2]
[332978409,1721718477540,-158.154533,0.00013699,2]
[332978410,1721718477566,-158.154533,0.00013699,2]
[332978411,1721718477588,-158.154533,0.00013699,2]
[332978412,1721718477611,-158.154533,0.00013699,2]
[332978413,1721718477633,-158.154533,0.00013699,2]
[332978414,1721718477655,-158.154533,0.00013699,2]
[332978415,1721718477677,-158.154533,0.00013699,2]
[332978416,1721718477700,-158.154533,0.00013699,2]
[332978417,1721718477723,-158.154533,0.00013699,2]
[332978418,1721718477746,-158.154533,0.00013699,2]
[332978419,1721718477768,-158.154528,0.00013699,2]
[332978420,1721718477790,-1000.0,0.00013699,2]
[332978421,1721718477816,-1000.0,0.00013699,2]
[332978422,1721718477838,-1000.0,0.00013699,2]
[332978423,1721718477862,-1000.0,0.00013699,2]
[332978424,1721718477884,-1000.0,0.00013699,2]
[332978425,1721718477907,-1000.0,0.00013699,2]
[332978426,1721718477929,-1000.0,0.00013699,2]
[332978427,1721718477955,-1000.0,0.00013699,2]
[332978428,1721718477978,-1000.0,0.00013699,2]
[332978429,1721718478001,-1000.0,0.00013699,2]
[332978430,1721718478026,-1000.0,0.00013699,2]
[332978431,1721718478052,-1000.0,0.00013699,2]
[332978432,1721718478078,-1000.0,0.00013699,2]
[332978433,1721718478104,-1000.0,0.00013699,2]
[332978434,1721718478127,-1000.0,0.00013699,2]
[332978435,1721718478150,-1000.0,0.00013699,2]
[332978436,1721718478173,-1000.0,0.00013699,2]
[332978437,1721718478199,-1000.0,0.00013699,2]
[332978438,1721718478224,-1000.0,0.00013699,2]
[332978439,1721718478248,-1000.0,0.00013699,2]
[332978440,1721718478272,-1000.0,0.00013699,2]
[332978441,1721718478298,-1000.0,0.00013699,2]
[332978442,1721718478326,-1000.0,0.00013699,2]
[332978443,1721718478353,-1000.0,0.00013699,2]
[332978444,1721718478378,-1000.0,0.00013699,2]
[332978445,1721718478402,-1000.0,0.00013699,2]
[332978446,1721718478428,-1000.0,0.00013699,2]
[332978447,1721718478451,-1000.0,0.00013699,2]
[332978448,1721718478473,-1000.0,0.00013699,2]
[332978449,1721718478496,-1000.0,0.00013699,2]
[332978450,1721718478518,-1000.0,0.00013699,2]
[332978451,1721718478540,-1000.0,0.00013699,2]
[332978452,1721718478562,-1000.0,0.00013699,2]
[332978453,1721718478585,-1000.0,0.00013699,2]
[332978454,1721718478608,-1000.0,0.00013699,2]
[332978455,1721718478631,-1000.0,0.00013699,2]
[332978456,1721718478658,-1000.0,0.00013699,2]
[332978457,1721718478681,-1000.0,0.00013699,2]
[332978458,1721718478703,-1000.0,0.00013699,2]
[332978459,1721718478727,-1000.0,0.00013699,2]
[332978460,1721718478751,-1000.0,0.00013699,2]
[332978461,1721718478774,-1000.0,0.00013699,2]
[332978462,1721718478796,-1000.0,0.00013699,2]
[332978463,1721718478821,-1000.0,0.00013699,2]
[332978464,1721718478845,-1000.0,0.00013699,2]
[332978465,1721718478871,-1000.0,0.00013699,2]
[332978466,1721718478894,-1000.0,0.00013699,2]
[332978467,1721718478919,-1000.0,0.00013699,2]
[332978468,1721718478942,-1000.0,0.00013699,2]
[332978469,1721718478965,-1000.0,0.00013699,2]
[332978470,1721718478989,-1000.0,0.00013699,2]
[332978471,1721718479014,-1000.0,0.00013699,2]
[332978472,1721718479040,-1000.0,0.00013699,2]
[332978473,1721718479066,-1000.0,0.00013699,2]
[332978474,1721718479089,-1000.0,0.00013699,2]
[332978475,1721718479113,-1000.0,0.00013699,2]
[332978476,1721718479135,-1098.695839,0.00013699,2]
[332978477,1721718479158,-357.949741,0.00013699,2]
[332978478,1721718479181,-357.949741,0.00013699,2]
[332978479,1721718479206,-357.949741,0.00013699,2]
[332978480,1721718479229,-357.949741,0.00013699,2]
[332978481,1721718479251,-357.949741,0.00013699,2]
[332978482,1721718479275,-357.949741,0.00013699,2]